[Event "2. Itzehoer Schach Open"]
[Site "Itzehoe, Germany"]
[Date "2023.05.01"]
[Round "5.4"]
[White "Moeller, Rainer"]
[Black "Eichmann, Phillip"]
[Result "1-0"]
[TimeControl "90 min für 40 Züge, Rest 30 min + 30 Sek pro Zug"]
[WhiteElo "1414"]
[BlackElo "1052"]

1. e4 {[%clk 01:30:53]} {[%emt 00:00:07]} e5 {[%clk 01:30:56]} {[%emt
00:00:05]} 2. Nf3 {[%clk 01:31:14]} {[%emt 00:00:08]} Nc6 {[%clk 01:31:21]}
{[%emt 00:00:06]} 3. d4 {[%clk 01:31:37]} {[%emt 00:00:07]} exd4 {[%clk
01:30:14]} {[%emt 00:01:38]} 4. Nxd4 {[%clk 01:31:57]} {[%emt 00:00:09]} Nf6
{[%clk 01:30:34]} {[%emt 00:00:10]} 5. Nc3 {[%clk 01:32:13]} {[%emt 00:00:13]}
Bb4 {[%clk 01:30:40]} {[%emt 00:00:24]} 6. Nxc6 {[%clk 01:30:40]} {[%emt
00:02:03]} dxc6 {[%clk 01:31:02]} {[%emt 00:00:07]} 7. Qxd8+ {[%clk 01:30:14]}
{[%emt 00:00:56]} Kxd8 {[%clk 01:31:26]} {[%emt 00:00:07]} 8. Bg5 {[%clk
01:27:31]} {[%emt 00:03:13]} Re8 {[%clk 01:29:53]} {[%emt 00:02:03]} 9. O-O-O+
{[%clk 01:26:20]} {[%emt 00:01:39]} Ke7 {[%clk 01:29:37]} {[%emt 00:00:48]} 10.
e5 {[%clk 01:24:48]} {[%emt 00:02:02]} Be6 {[%clk 01:26:28]} {[%emt 00:03:39]}
11. exf6+ {[%clk 01:24:33]} {[%emt 00:00:44]} gxf6 {[%clk 01:26:03]} {[%emt
00:00:08]} 12. Bh4 {[%clk 01:20:02]} {[%emt 00:05:49]} Bxc3 {[%clk 01:26:07]}
{[%emt 00:00:25]} 13. bxc3 {[%clk 01:20:25]} {[%emt 00:00:08]} Bxa2 {[%clk
01:26:29]} {[%emt 00:00:07]} 14. Bd3 {[%clk 01:19:09]} {[%emt 00:01:46]} Bd5
{[%clk 01:26:08]} {[%emt 00:00:51]} 15. Rhe1+ {[%clk 01:17:53]} {[%emt
00:01:46]} Kd7 {[%clk 01:25:43]} {[%emt 00:00:53]} 16. Bf5+ {[%clk 01:15:49]}
{[%emt 00:02:36]} Kd6 {[%clk 01:25:44]} {[%emt 00:00:30]} 17. f3 {[%clk
01:14:26]} {[%emt 00:01:53]} a5 {[%clk 01:25:14]} {[%emt 00:01:01]} 18. c4
{[%clk 01:14:38]} {[%emt 00:00:17]} a4 {[%clk 01:25:29]} {[%emt 00:00:15]} 19.
cxd5 {[%clk 01:13:27]} {[%emt 00:01:41]} cxd5 {[%clk 01:25:42]} {[%emt
00:00:17]} 20. Rxe8 {[%clk 01:09:14]} {[%emt 00:04:42]} Rxe8 {[%clk 01:26:03]}
{[%emt 00:00:10]} 21. Bg3+ {[%clk 01:03:37]} {[%emt 00:06:07]} Kc6 {[%clk
01:26:09]} {[%emt 00:00:21]} 22. Kb2 {[%clk 01:03:04]} {[%emt 00:01:05]} Ra8
{[%clk 01:26:29]} {[%emt 00:00:11]} 23. Ra1 {[%clk 01:01:52]} {[%emt 00:01:41]}
b5 {[%clk 01:26:42]} {[%emt 00:00:18]} 24. c3 {[%clk 01:02:01]} {[%emt
00:00:21]} Kb6 {[%clk 01:26:56]} {[%emt 00:00:17]} 25. Bf2+ {[%clk 01:01:50]}
{[%emt 00:00:39]} c5 {[%clk 01:27:02]} {[%emt 00:00:24]} 26. Bxh7 {[%clk
00:59:19]} {[%emt 00:03:01]} Re8 {[%clk 01:27:23]} {[%emt 00:00:09]} 27. Re1
{[%clk 00:57:12]} {[%emt 00:02:37]} Rh8 {[%clk 01:27:11]} {[%emt 00:00:42]} 28.
Bc2 {[%clk 00:55:52]} {[%emt 00:01:51]} Rxh2 {[%clk 01:27:15]} {[%emt
00:00:26]} 29. Rg1 {[%clk 00:55:13]} {[%emt 00:01:08]} Kc6 {[%clk 01:26:40]}
{[%emt 00:01:06]} 30. f4 {[%clk 00:52:42]} {[%emt 00:03:01]} Kd6 {[%clk
01:25:16]} {[%emt 00:01:53]} 31. f5 {[%clk 00:52:27]} {[%emt 00:00:45]} Kc6
{[%clk 01:25:39]} {[%emt 00:00:08]} 32. Bd1 {[%clk 00:49:15]} {[%emt 00:03:39]}
Rh8 {[%clk 01:25:24]} {[%emt 00:00:48]} 33. Bf3 {[%clk 00:47:37]} {[%emt
00:02:07]} Ra8 {[%clk 01:25:32]} {[%emt 00:00:23]} 34. Ra1 {[%clk 00:47:43]}
{[%emt 00:00:22]} Re8 {[%clk 01:22:59]} {[%emt 00:03:04]} 35. Rd1 {[%clk
00:39:26]} {[%emt 00:08:44]} Rd8 {[%clk 01:21:44]} {[%emt 00:01:48]} 36. Re1
{[%clk 00:37:27]} {[%emt 00:02:28]} Kd6 {[%clk 01:21:45]} {[%emt 00:00:27]} 37.
Bh4 {[%clk 00:37:26]} {[%emt 00:00:32]} Ra8 {[%clk 01:21:54]} {[%emt 00:00:23]}
38. Rd1 {[%clk 00:35:28]} {[%emt 00:02:28]} a3+ {[%clk 01:22:05]} {[%emt
00:00:19]} 39. Ka2 {[%clk 00:35:40]} {[%emt 00:00:17]} b4 {[%clk 01:22:06]}
{[%emt 00:00:29]} 40. Rxd5+ {[%clk 00:35:23]} {[%emt 00:00:47]} Ke7 {[%clk
01:21:36]} {[%emt 00:01:00]} 41. Rxc5 {[%clk 00:33:53]} {[%emt 00:02:01]} b3+
{[%clk 01:20:31]} {[%emt 00:01:36]} 42. Kxb3 {[%clk 00:33:22]} {[%emt
00:00:59]} a2 {[%clk 01:20:50]} {[%emt 00:00:11]} 43. Rc7+ {[%clk 00:28:07]}
{[%emt 00:05:41]} Kf8 {[%clk 01:20:08]} {[%emt 00:01:16]} 44. Rc8+ Rxc8 {[%clk
01:20:04]} 45. Kxa2 {[%clk 00:28:30]} {[%emt 00:00:05]} Rxc3 {[%clk 01:20:18]}
{[%emt 00:00:16]} 46. Bxf6 {[%clk 00:27:48]} {[%emt 00:01:12]} Rc5 {[%clk
01:20:10]} {[%emt 00:00:35]} 47. g4 {[%clk 00:15:27]} {[%emt 00:12:54]} Rc4
{[%clk 01:15:49]} {[%emt 00:04:52]} 48. Kb3 {[%clk 00:14:35]} {[%emt 00:01:21]}
Rf4 {[%clk 01:15:16]} {[%emt 00:01:03]} 49. Bd1 {[%clk 00:09:48]} {[%emt
00:05:17]} Rf1 {[%clk 01:14:32]} {[%emt 00:01:15]} 50. Bc2 {[%clk 00:08:49]}
{[%emt 00:01:28]} Rg1 {[%clk 01:14:40]} {[%emt 00:00:23]} 51. g5 {[%clk
00:08:48]} {[%emt 00:00:30]} Rf1 {[%clk 01:14:24]} {[%emt 00:00:45]} 52. Kc3
{[%clk 00:05:50]} {[%emt 00:03:29]} Rf4 {[%clk 01:14:27]} {[%emt 00:00:27]} 53.
Bd3 {[%clk 00:03:53]} {[%emt 00:02:27]} Rg4 {[%clk 01:13:54]} {[%emt 00:01:04]}
54. g6 {[%clk 00:02:12]} {[%emt 00:02:10]} fxg6 {[%clk 01:12:03]} {[%emt
00:02:21]} 55. fxg6 {[%clk 00:02:17]} {[%emt 00:00:24]} Rg3 {[%clk 01:11:38]}
{[%emt 00:00:57]} 56. Bd4 {[%clk 00:29:06]} {[%emt 00:03:38]} Kg8 {[%clk
01:40:20]} {[%emt 00:01:48]} 57. Kc4 {[%clk 00:27:36]} {[%emt 00:02:01]} Rg5
{[%clk 01:38:55]} {[%emt 00:01:55]} 58. Be4 {[%clk 00:27:28]} {[%emt 00:00:39]}
Rg4 {[%clk 01:38:20]} {[%emt 00:01:04]} 59. Bd5+ {[%clk 00:27:31]} {[%emt
00:00:27]} Kf8 {[%clk 01:38:20]} {[%emt 00:00:30]} 60. Bf7 {[%clk 00:22:26]}
{[%emt 00:05:34]} Rf4 {[%clk 01:37:55]} {[%emt 00:00:55]} 61. Be6 {[%clk
00:20:52]} {[%emt 00:02:03]} Rxd4+ {[%clk 01:37:34]} {[%emt 00:00:53]} 62. Kxd4
{[%clk 00:21:17]} {[%emt 00:00:03]} Kg7 {[%clk 01:37:57]} {[%emt 00:00:08]} 63.
Bf5 {[%clk 00:21:32]} {[%emt 00:00:15]} Kf6 {[%clk 01:38:20]} {[%emt 00:00:07]}
64. Bd3 {[%clk 00:21:26]} {[%emt 00:00:36]} Kg7 {[%clk 01:38:42]} {[%emt
00:00:08]} 65. Ke5 {[%clk 00:21:42]} {[%emt 00:00:15]} Kh8 {[%clk 01:38:57]}
{[%emt 00:00:14]} 66. Kf6 {[%clk 00:21:45]} {[%emt 00:00:27]} Kg8 {[%clk
01:39:07]} {[%emt 00:00:20]} 67. Bc4+ {[%clk 00:21:50]} {[%emt 00:00:26]} 1-0

[Event "2. Itzehoer Schach Open"]
[Site "Itzehoe, Germany"]
[Date "2023.05.01"]
[Round "5.48"]
[White "Greiner, Andre"]
[Black "Greiner, Jan Oluf"]
[Result "0-1"]
[TimeControl "90 min für 40 Züge, Rest 30 min + 30 Sek pro Zug"]
[WhiteElo "796"]
[BlackElo "960"]

1. e4 {[%clk 01:28:25]} {[%emt 00:02:35]} e5 {[%clk 01:30:53]} {[%emt
00:00:08]} 2. Nf3 {[%clk 01:28:37]} {[%emt 00:00:17]} Nc6 {[%clk 01:31:17]}
{[%emt 00:00:06]} 3. Bb5 {[%clk 01:29:01]} {[%emt 00:00:06]} Nf6 {[%clk
01:31:21]} {[%emt 00:00:26]} 4. d4 {[%clk 01:27:45]} {[%emt 00:01:46]} exd4
{[%clk 01:30:32]} {[%emt 00:01:19]} 5. Bxc6 {[%clk 01:27:59]} {[%emt 00:00:15]}
bxc6 {[%clk 01:29:58]} {[%emt 00:01:05]} 6. Bg5 {[%clk 01:28:19]} {[%emt
00:00:10]} Bb4+ {[%clk 01:30:04]} {[%emt 00:00:24]} 7. c3 {[%clk 01:28:12]}
{[%emt 00:00:37]} dxc3 {[%clk 01:29:53]} {[%emt 00:00:41]} 8. bxc3 {[%clk
01:28:31]} {[%emt 00:00:11]} Be7 {[%clk 01:30:14]} {[%emt 00:00:09]} 9. Nbd2
{[%clk 01:25:13]} {[%emt 00:03:47]} Ba6 {[%clk 01:29:46]} {[%emt 00:00:57]} 10.
Rb1 {[%clk 01:25:04]} {[%emt 00:00:42]} Rb8 {[%clk 01:29:44]} {[%emt 00:00:31]}
0-1

[Event "2. Itzehoer Schach Open"]
[Site "Itzehoe, Germany"]
[Date "2023.05.01"]
[Round "5.47"]
[White "Steinbach, Aaron"]
[Black "Axt, Christian"]
[Result "0-1"]
[TimeControl "90 min für 40 Züge, Rest 30 min + 30 Sek pro Zug"]
[WhiteElo "787"]
[BlackElo "1728"]

1. d4 {[%clk 01:30:57]} {[%emt 00:00:02]} Nf6 {[%clk 01:30:54]} {[%emt
00:00:06]} 2. c4 {[%clk 01:31:20]} {[%emt 00:00:08]} e5 {[%clk 01:31:17]}
{[%emt 00:00:06]} 3. dxe5 {[%clk 01:30:32]} {[%emt 00:01:19]} Ng4 {[%clk
01:31:39]} {[%emt 00:00:07]} 4. Qd4 {[%clk 01:29:40]} {[%emt 00:01:23]} d6
{[%clk 01:24:36]} {[%emt 00:07:33]} 5. h3 {[%clk 01:28:47]} {[%emt 00:01:23]}
Nxe5 {[%clk 01:22:55]} {[%emt 00:02:11]} 6. Bf4 {[%clk 01:27:22]} {[%emt
00:01:55]} Nbc6 {[%clk 01:21:52]} {[%emt 00:01:32]} 7. Qc3 {[%clk 01:26:17]}
{[%emt 00:01:35]} d5 {[%clk 01:19:02]} {[%emt 00:03:21]} 8. a3 {[%clk
01:24:59]} {[%emt 00:01:48]} d4 {[%clk 01:16:24]} {[%emt 00:03:07]} 9. Qg3
{[%clk 01:23:05]} {[%emt 00:02:24]} Qf6 {[%clk 01:12:16]} {[%emt 00:04:38]} 10.
Nd2 {[%clk 01:20:35]} {[%emt 00:03:01]} Bf5 {[%clk 01:09:00]} {[%emt 00:03:45]}
11. Ngf3 {[%clk 01:17:22]} {[%emt 00:03:43]} Bd6 {[%clk 01:05:07]} {[%emt
00:04:23]} 12. c5 {[%clk 01:15:25]} {[%emt 00:02:28]} Nxf3+ {[%clk 01:05:11]}
{[%emt 00:00:26]} 13. Nxf3 {[%clk 01:13:42]} {[%emt 00:02:12]} Bxc5 {[%clk
01:03:15]} {[%emt 00:02:26]} 14. Bxc7 {[%clk 01:07:49]} {[%emt 00:06:24]} O-O
{[%clk 00:59:59]} {[%emt 00:03:44]} 15. Ne5 {[%clk 01:05:01]} {[%emt 00:03:18]}
Rfe8 {[%clk 00:54:31]} {[%emt 00:05:59]} 16. Nxc6 {[%clk 00:56:18]} {[%emt
00:09:14]} Qxc6 {[%clk 00:48:06]} {[%emt 00:06:54]} 17. Be5 {[%clk 00:55:01]}
{[%emt 00:01:47]} f6 {[%clk 00:48:21]} {[%emt 00:00:15]} 18. Bf4 {[%clk
00:54:55]} {[%emt 00:00:35]} Rad8 {[%clk 00:44:53]} {[%emt 00:03:58]} 19. Bh6
{[%clk 00:44:44]} {[%emt 00:10:43]} Bf8 {[%clk 00:43:36]} {[%emt 00:01:46]} 20.
Rc1 {[%clk 00:40:23]} {[%emt 00:04:52]} Qb6 {[%clk 00:40:34]} {[%emt 00:03:31]}
21. Rc7 {[%clk 00:36:33]} {[%emt 00:04:20]} Bg6 {[%clk 00:39:18]} {[%emt
00:01:47]} 22. h4 {[%clk 00:34:55]} {[%emt 00:02:07]} gxh6 {[%clk 00:33:04]}
{[%emt 00:06:43]} 23. h5 {[%clk 00:35:01]} {[%emt 00:00:25]} Bd6 {[%clk
00:33:10]} {[%emt 00:00:24]} 24. Qg4 {[%clk 00:34:20]} {[%emt 00:01:12]} Qxc7
{[%clk 00:33:03]} {[%emt 00:00:37]} 25. hxg6 {[%clk 00:34:33]} {[%emt
00:00:17]} Qc1# {[%clk 00:33:19]} {[%emt 00:00:13]} 0-1